[Event "SixDays GM March 2024"]
[Site "Budapest"]
[Date "2024.03.31"]
[Round "3.1"]
[White "Grover, Sahaj"]
[Black "Horvath, Adam"]
[Result "1-0"]
[ECO "B41"]
[WhiteElo "2514"]
[BlackElo "2440"]
[Annotator "TA"]
[PlyCount "57"]
[EventDate "2024.03.26"]
[EventType "tourn"]
[EventCountry "HUN"]
[SourceTitle "playchess.com"]
[Source "ChessBase"]
[SourceQuality "1"]
[TimeControl "5400+30"]

{[%evp 13,57,0,-2,0,0,-10,-3,-64,-36,-44,-25,-39,-37,-45,-30,-41,-30,-33,-47,-49,28,0,0,-140,36,43,36,29,145,140,254,262,248,147,652,639,626,636,622,632,625,637,637,633,560,575]} 1. e4 {[%emt 0:10:05]} c5 {[%emt 0:00:13]} 2. Nf3 {[%emt 0:00:05]} e6 {[%emt 0:00:19]} 3. d4 {[%emt 0:00:05]} cxd4 {[%emt 0:00:05]} 4. Nxd4 {[%emt 0:00:04]} a6 {[%emt 0:00:05]} 5. a3 {[%emt 0:00:04]} Qc7 {[%emt 0:05:54]} 6. Be3 {[%emt 0:00:59]} Nf6 {[%emt 0:00:38]} 7. Nc3 {[%emt 0:01:31]} b5 {[%emt 0:00:40]} 8. f4 {[%emt 0:02:27]} Bb7 {[%emt 0:00:34][%cal Ob5b4]} 9. Bd3 {[%emt 0:11:39]} Bc5 {[%emt 0:04:01]} 10. Qd2 {[%emt 0:08:55]} (10. e5 $11 Nd5 11. Nxd5 Bxd5 12. Qe2) 10... Qb6 $1 $15 {[%emt 0:26:18]} 11. Nce2 {[%emt 0:00:28][%cal Bc3e2,Be2g3,Bg3h5][%mdl 32]} Nxe4 {[%emt 0:03:25]} 12. Bxe4 {[%emt 0:00:29]} Bxe4 {[%emt 0:00:05]} 13. b4 {[%emt 0:08:13]} Bxd4 {[%emt 0:10:27]} (13... Bxg2 $2 14. bxc5 Qb7 15. Rg1 $18) 14. Bxd4 {[%emt 0:00:20]} Qc6 {[%emt 0:06:02][%cal Oe8g8]} 15. Ng3 {[%emt 0:12:10]} f6 {[%emt 0:22:03]} 16. O-O-O {[%emt 0:12:36]} Bd5 {[%emt 0:01:24]} (16... O-O $15) 17. Nh5 {[%emt 0:05:20]} (17. Bc5 $5) 17... O-O {[%emt 0:01:28]} 18. Qf2 {[%emt 0:00:17] [#]} (18. Rhe1 $11 {keeps the balance.}) 18... Kh8 $2 {[%emt 0:09:59]} (18... Bxg2 $2 19. Rhg1 e5 20. Rxg2 $18 (20. fxe5 fxe5 21. Qg3 Rf7 $18)) (18... Rf7 $1 $17 {[%cal Od7d6] Hoping for ...d6!} 19. Rd3 Be4 (19... Bxg2 $2 20. Rg1 $18)) 19. Qg3 $14 {[%emt 0:05:09]} Rf7 {[%emt 0:00:04][%cal Od7d6] ...d6! is the strong threat. Black is weak on the dark squares} 20. Nxg7 $1 {[%emt 0:00:56]} d6 {[%emt 0:02:52] [#]} (20... Rxg7 21. Bxf6) (20... Be4 $1 $11 21. Rd2 e5 (21... Rxg7 $2 22. Bxf6 Bg6 23. h4 $18) 22. fxe5 Rxg7) 21. Rhe1 $1 $16 {[%emt 0:07:40] White is more active.} (21. Nh5 Nd7 $15) 21... Rxg7 {[%emt 0:02:54]} (21... e5 $16 22. Nf5 Be6 (22... exd4 $2 {perishes.} 23. Rxd4 Nd7 24. Ne7 $18) (22... Be4 $2 23. Rxe4 Qxe4 24. Nxd6 $18) 23. Nxd6 Qxd6 24. Bxe5 Qf8) 22. Bxf6 $18 {[%emt 0:00:06]} Raa7 {[%emt 0:00:02][%cal Oa7f7,Ba8a7,Ba7g7,Bg7g8][%mdl 32]} 23. Qg5 $40 {[%emt 0:01:31][%mdl 128] White is out for blood.} (23. Qh4 $18) 23... Be4 $2 {[%emt 0:01:54][%mdl 8192] A mistake that costs the game.} (23... Kg8 $16 24. Bxg7 Rxg7 25. Qd8+ Kf7) 24. Rxe4 {[%emt 0:03:16] White is clearly winning.} Qxe4 {[%emt 0:00:03]} 25. Bxg7+ {[%emt 0:00:05]} Rxg7 {[%emt 0:00:05]} 26. Qd8+ {[%emt 0:00:03]} Rg8 {[%emt 0:00:03]} 27. Qf6+ {[%emt 0:00:05]} Rg7 {[%emt 0:00:01]} 28. Rxd6 {[%emt 0:00:27]} Nc6 {[%emt 0:00:31] Prevents Rd8+} 29. Rxe6 {Weighted Error Value: White=0.24 (precise) /Black=0.67.  Loses game:     	---       	Black=1      Mistake:       	White=3     	Black=4      Inaccurate:     	White=1     	---        OK:         	White=5     	Black=6      Best:        	White=2     	---        Strong:       	White=2     	Black=1} ({Inferior is} 29. Qxe6 Qxe6 30. Rxe6 Rc7 $11) 1-0

[Event "SixDays GM March 2024"]
[Site "Budapest"]
[Date "2024.03.31"]
[Round "3.2"]
[White "Orujov, Farid"]
[Black "Mihok, Oliver"]
[Result "0-1"]
[ECO "C77"]
[WhiteElo "2266"]
[BlackElo "2549"]
[Annotator "TA"]
[PlyCount "108"]
[EventDate "2024.03.26"]
[EventType "tourn"]
[EventCountry "HUN"]
[SourceTitle "playchess.com"]
[Source "ChessBase"]
[SourceQuality "1"]
[TimeControl "5400+30"]

{[%evp 19,108,0,0,0,0,0,0,-11,0,0,0,-32,-33,-27,-22,-22,0,0,12,0,6,0,6,-31,0,0,0,0,0,0,35,10,37,45,31,0,0,0,0,0,0,0,0,0,0,0,0,0,0,0,0,0,0,-10,-8,-31,-16,-18,-11,-128,-122,-233,-241,-357,-356,-471,-424,-459,-452,-469,-351,-407,-382,-472,-475,-387,-364,-2335,-1655,-2722,-4133,-5077,-4133,-29985,-29986,-29986,-29987,-29987,-29988,-29988,-29988]} 1. e4 {[%emt 0:01:26]} e5 {[%emt 0:00:37]} 2. Nf3 {[%emt 0:00:38]} Nc6 {[%emt 0:00:06]} 3. Bb5 {[%emt 0:00:13]} a6 {[%emt 0:00:06]} 4. Ba4 {[%emt 0:00:04]} Nf6 {[%emt 0:00:07]} 5. d4 {[%emt 0:00:12]} exd4 {[%emt 0:00:44]} 6. O-O {[%emt 0:00:17]} Be7 {[%emt 0:00:29]} 7. e5 {[%emt 0:00:18]} Ne4 {[%emt 0:00:11]} 8. Nxd4 {[%emt 0:00:29]} O-O {[%emt 0:00:53]} 9. Nf5 {[%emt 0:00:58]} d5 {[%emt 0:01:03]} 10. Nxe7+ {[%emt 0:00:06]} Nxe7 {[%emt 0:00:54]} 11. c3 {[%emt 0:00:13]} Nc5 {[%emt 0:00:24]} 12. Bc2 {[%emt 0:00:08]} Bf5 {[%emt 0:00:06]} 13. Na3 {[%emt 0:00:29] The position is equal.} Qd7 {[%emt 0:01:07]} 14. Be3 {[%emt 0:02:15]} Ne6 {[%emt 0:00:35]} 15. Bxf5 {[%emt 0:00:55]} Nxf5 {[%emt 0:00:08]} 16. Qd3 {[%emt 0:00:37]} Nxe3 {[%emt 0:06:56]} 17. Qxe3 {[%emt 0:00:07]} Qa4 {[%emt 0:06:42]} 18. f4 {[%emt 0:05:29]} f5 {[%emt 0:00:52]} 19. exf6 {[%emt 0:02:59]} Rxf6 {[%emt 0:00:12]} 20. f5 {[%emt 0:01:36]} Nf8 {[%emt 0:00:24]} 21. Qe5 {[%emt 0:10:11]} Qc6 {[%emt 0:08:03]} 22. Rad1 {[%emt 0:09:54]} Rd6 {[%emt 0:04:35]} 23. Qd4 {[%emt 0:05:53]} Re8 {[%emt 0:01:54]} 24. Rde1 {[%emt 0:03:52]} b6 {[%emt 0:13:10]} 25. h3 {[%emt 0:11:16]} Qd7 {[%emt 0:02:43]} 26. Rxe8 {[%emt 0:00:34]} Qxe8 {[%emt 0:00:05]} 27. f6 {[%emt 0:00:52]} gxf6 {[%emt 0:00:53]} (27... Rxf6 {simplifies} 28. Rxf6 gxf6 29. Qxd5+ Qf7) 28. Rxf6 {[%emt 0:01:01]} Rxf6 {[%emt 0:01:30]} 29. Qxf6 $11 {[%emt 0:00:13][%mdl 4096] Endgame. KQN-KQN} Qe4 {[%emt 0:04:07]} 30. Qf2 {[%emt 0:10:11]} Ng6 {[%emt 0:05:11]} 31. Nc2 {[%emt 0:02:26]} c5 {[%emt 0:01:40]} 32. Ne3 {[%emt 0:06:31]} Nf4 {[%emt 0:00:16]} 33. Qg3+ {[%emt 0:02:16]} Kf7 {[%emt 0:03:04] [#] And now ...Ne2+ would win.} 34. Kh2 {[%emt 0:03:37]} h5 {[%emt 0:03:34][%cal Oh5h4]} 35. Qf2 {[%emt 0:02:25]} Ke6 {[%emt 0:00:26]} 36. g3 {[%emt 0:07:33]} Ng6 {[%emt 0:02:06]} 37. Ng2 {[%emt 0:05:59]} d4 {[%emt 0:02:48]} 38. cxd4 {[%emt 0:00:08]} cxd4 {[%emt 0:00:08]} 39. Qd2 {[%emt 0:01:19]} (39. b4 $11 {keeps the balance.}) 39... Ne5 $17 {[%emt 0:07:13] Black is more active. White is now going downhill.} 40. Qh6+ {[%emt 0:00:23]} (40. Nf4+ $17 Kd7 41. Qe2 Qxe2+ 42. Nxe2) 40... Kd7 {[%emt 0:00:19] [#] ( -> ...Nf3+)} 41. Nf4 {[%emt 0:02:31]} (41. Qg7+ {was worth a try.} Kc6 42. Qh6+ Kb5 43. Qxh5) 41... Qc2+ $19 {[%emt 0:01:49]} 42. Kh1 {[%emt 0:00:42]} Qc1+ {[%emt 0:00:38]} (42... Qxb2 $2 {perishes.} 43. Qe6+ (43. Qxh5 Qa1+ 44. Kh2 Qxa2+ 45. Kg1 Qb1+ 46. Kf2 Qc2+ 47. Kf1 Qc4+ 48. Kf2 Qc5 $17) 43... Kd8 44. Qxe5 $18) 43. Kh2 {[%emt 0:00:24] Black must now prevent Qe6+.} Qxb2+ {[%emt 0:00:42]} 44. Kh1 {[%emt 0:00:01]} Qb1+ {[%emt 0:00:36]} ({Weaker is} 44... Qxa2 45. Qg7+ Nf7 46. Qxd4+ Kc6 47. Qe4+ Kd6 48. Qg6+ (48. Nxh5 $2 {loses.} Qd5 $19) 48... Kc7 49. Ne6+ Kd6 50. Nf4+ Kc7 51. h4 $11) 45. Kh2 {[%emt 0:00:01] Threatens to win with Qe6+.} Qxa2+ {[%emt 0:00:20]} 46. Kh1 {[%emt 0:00:01]} Qb1+ {[%emt 0:00:34]} 47. Kh2 {[%emt 0:00:01] Strongly threatening Qe6+.} Qc2+ {[%emt 0:00:08]} 48. Kh1 $2 {[%emt 0:00:12]} (48. Kg1 Qd1+ 49. Kh2 Qd2+ 50. Kh1 Qe1+ 51. Kg2) 48... Qc6+ {[%emt 0:02:54]} 49. Qxc6+ {[%emt 0:00:41]} Kxc6 {[%emt 0:00:08] KN-KN} 50. Kg2 {[%emt 0:00:14]} a5 {[%emt 0:00:18] aiming for ...d3.} 51. Nxh5 {[%emt 0:00:54]} a4 {[%emt 0:00:21] Black mates.} 52. Nf4 {[%emt 0:00:05]} d3 {[%emt 0:00:47]} 53. Kf2 {[%emt 0:00:15]} a3 {[%emt 0:00:13]} 54. Ne6 {[%emt 0:00:05]} Kd5 {[%emt 0:00:16] Weighted Error Value: White=0.47/Black=0.05 (flawless) .  Mistake:       	White=4     	---        Inaccurate:     	White=4     	Black=3      OK:         	White=15    	Black=17     Best:        	White=1     	Black=3} 0-1

[Event "SixDays GM March 2024"]
[Site "Budapest"]
[Date "2024.03.31"]
[Round "3.3"]
[White "Kaasen, Tor Fredrik"]
[Black "Juhasz, Agoston"]
[Result "1/2-1/2"]
[ECO "E54"]
[WhiteElo "2449"]
[BlackElo "2406"]
[Annotator "RC"]
[PlyCount "69"]
[EventDate "2024.03.26"]
[EventType "tourn"]
[EventCountry "HUN"]
[SourceTitle "playchess.com"]
[Source "ChessBase"]
[SourceQuality "1"]
[TimeControl "5400+30"]

1. d4 {[%emt 0:04:33]} Nf6 {[%emt 0:00:13]} 2. c4 {[%emt 0:00:50]} e6 {[%emt 0:00:27]} 3. Nc3 {[%emt 0:00:29]} Bb4 {[%emt 0:00:21]} 4. e3 {[%emt 0:00:26]} O-O {[%emt 0:00:24]} 5. Bd3 {[%emt 0:00:32]} d5 {[%emt 0:01:46]} 6. Nf3 {[%emt 0:00:43]} dxc4 {[%emt 0:02:23]} 7. Bxc4 {[%emt 0:00:09]} c5 {[%emt 0:01:10]} 8. O-O {[%emt 0:00:32]} cxd4 {[%emt 0:02:48]} 9. exd4 {[%emt 0:00:20]} b6 {[%emt 0:00:41]} 10. Qe2 {[%emt 0:00:58]} Bb7 {[%emt 0:00:34]} 11. Rd1 {[%emt 0:00:54]} Nbd7 {[%emt 0:03:37]} 12. d5 {[%emt 0:02:39]} exd5 {[%emt 0:05:58]} 13. Nxd5 {[%emt 0:00:24]} Bxd5 {[%emt 0:17:10]} 14. Bxd5 {[%emt 0:00:23]} Nxd5 {[%emt 0:00:36]} 15. Rxd5 {[%emt 0:00:25]} Qc7 {[%emt 0:01:25]} 16. Bg5 {[%emt 0:03:53]} Qc6 {[%emt 0:02:38]} 17. Rad1 {[%emt 0:05:56]} Nf6 {[%emt 0:00:24]} 18. Ne5 {[%emt 0:02:49]} Qxd5 {[%emt 0:10:31]} 19. Rxd5 {[%emt 0:00:41]} Nxd5 {[%emt 0:00:04]} 20. Qe4 {[%emt 0:04:32]} Be7 {[%emt 0:03:25]} 21. Nxf7 {[%emt 0:05:41]} Rxf7 {[%emt 0:09:58]} 22. Bxe7 {[%emt 0:00:40]} Rc8 {[%emt 0:00:37]} 23. Bg5 {[%emt 0:01:36]} Nf6 {[%emt 0:01:23]} 24. Qa4 {[%emt 0:07:53]} h6 {[%emt 0:02:24]} 25. Bd2 {[%emt 0:05:58]} Rd8 {[%emt 0:00:41]} 26. Bc3 {[%emt 0:03:50]} Nd5 {[%emt 0:00:59]} 27. Be5 {[%emt 0:04:25]} Nf4 {[%emt 0:05:32]} 28. h3 {[%emt 0:07:13]} Nd3 {[%emt 0:01:10]} 29. f4 {[%emt 0:21:57]} Nxe5 {[%emt 0:06:04]} 30. fxe5 {[%emt 0:00:07]} Re7 {[%emt 0:00:31]} 31. Qb3+ {[%emt 0:01:18]} Kh8 {[%emt 0:00:27]} 32. Qa3 {[%emt 0:01:06]} Rde8 {[%emt 0:03:35]} 33. Kh2 {[%emt 0:01:01]} Kg8 {[%emt 0:01:42]} 34. Qb3+ {[%emt 0:01:18]} Kh8 {[%emt 0:01:05]} 35. Qa3 {[%emt 0:00:07]} 1/2-1/2

[Event "SixDays GM March 2024"]
[Site "Budapest"]
[Date "2024.03.31"]
[Round "3.4"]
[White "Uskov, Artem"]
[Black "Pribelszky, Bence"]
[Result "1/2-1/2"]
[ECO "B56"]
[WhiteElo "2392"]
[BlackElo "2354"]
[Annotator "RC"]
[PlyCount "56"]
[EventDate "2024.03.26"]
[EventType "tourn"]
[EventCountry "HUN"]
[SourceTitle "playchess.com"]
[Source "ChessBase"]
[SourceQuality "1"]
[TimeControl "5400+30"]

1. e4 {[%emt 0:12:24]} c5 {[%emt 0:00:30]} 2. Nf3 {[%emt 0:00:07]} d6 {[%emt 0:00:07]} 3. d4 {[%emt 0:00:04]} cxd4 {[%emt 0:00:04]} 4. Nxd4 {[%emt 0:00:03]} Nf6 {[%emt 0:00:09]} 5. Nc3 {[%emt 0:00:04]} Bd7 {[%emt 0:00:07]} 6. f3 {[%emt 0:00:15]} e5 {[%emt 0:00:07]} 7. Nb3 {[%emt 0:00:05]} Be7 {[%emt 0:00:07]} 8. Be3 {[%emt 0:00:29]} O-O {[%emt 0:00:08]} 9. Qd2 {[%emt 0:01:01]} a5 {[%emt 0:00:07]} 10. a4 {[%emt 0:00:05]} Na6 {[%emt 0:00:08]} 11. Bb5 {[%emt 0:02:59]} Bc6 {[%emt 0:08:07]} 12. Nd5 {[%emt 0:10:54]} Bxd5 {[%emt 0:37:26]} 13. exd5 {[%emt 0:00:08]} b6 {[%emt 0:00:16]} 14. O-O {[%emt 0:02:54]} Qc7 {[%emt 0:03:39]} 15. c4 {[%emt 0:02:09]} Nd7 {[%emt 0:05:48]} 16. f4 {[%emt 0:07:14]} Nac5 {[%emt 0:02:12]} 17. Nxc5 {[%emt 0:00:12]} Nxc5 {[%emt 0:01:37]} 18. Rad1 {[%emt 0:01:00]} Bf6 {[%emt 0:06:48]} 19. g4 {[%emt 0:04:44]} exf4 {[%emt 0:06:05]} 20. Bxf4 {[%emt 0:00:43]} Nd7 {[%emt 0:00:45]} 21. Rde1 {[%emt 0:19:28]} Be5 {[%emt 0:01:28]} 22. Be3 {[%emt 0:01:18]} Nc5 {[%emt 0:01:20]} 23. h3 {[%emt 0:01:36]} f6 {[%emt 0:02:14]} 24. Rf3 {[%emt 0:01:21]} Rf7 {[%emt 0:02:06]} 25. Ref1 {[%emt 0:00:48]} Raf8 {[%emt 0:04:10]} 26. Kg2 {[%emt 0:00:35]} Qc8 {[%emt 0:01:33]} 27. Qc2 {[%emt 0:00:29]} Kh8 {[%emt 0:01:11]} 28. Kh1 {[%emt 0:05:48]} Kg8 {[%emt 0:05:43]} 1/2-1/2

[Event "SixDays GM March 2024"]
[Site "Budapest"]
[Date "2024.03.31"]
[Round "3.5"]
[White "Mayank Chakraborty"]
[Black "Konyves, Almos"]
[Result "1/2-1/2"]
[ECO "C50"]
[WhiteElo "2386"]
[BlackElo "2306"]
[Annotator "RC"]
[PlyCount "103"]
[EventDate "2024.03.26"]
[EventType "tourn"]
[EventCountry "HUN"]
[SourceTitle "playchess.com"]
[Source "ChessBase"]
[SourceQuality "1"]
[TimeControl "5400+30"]

1. e4 {[%emt 0:00:01]} e5 {[%emt 0:00:10]} 2. Nf3 {[%emt 0:00:03]} Nc6 {[%emt 0:00:05]} 3. Bc4 {[%emt 0:00:05]} Bc5 {[%emt 0:00:16]} 4. d3 {[%emt 0:00:03]} Nf6 {[%emt 0:00:22]} 5. Nc3 {[%emt 0:00:04]} h6 {[%emt 0:00:31]} 6. O-O {[%emt 0:00:07]} O-O {[%emt 0:00:33]} 7. h3 {[%emt 0:00:05]} d6 {[%emt 0:00:00]} 8. Na4 {[%emt 0:00:24]} Bb4 {[%emt 0:03:00]} 9. c3 {[%emt 0:00:53]} Ba5 {[%emt 0:00:02]} 10. b4 {[%emt 0:00:38]} Bb6 {[%emt 0:00:03]} 11. Nxb6 {[%emt 0:02:21]} axb6 {[%emt 0:00:03]} 12. a4 {[%emt 0:01:43]} Ne7 {[%emt 0:00:53]} 13. Be3 {[%emt 0:03:49]} Ng6 14. Bb3 {[%emt 0:07:04]} d5 {[%emt 0:04:33]} 15. Bc2 Re8 {[%emt 0:21:14]} 16. c4 {[%emt 0:03:24]} d4 {[%emt 0:00:05]} 17. Bd2 {[%emt 0:00:34]} Nh7 18. Bb3 {[%emt 0:06:08]} Qf6 {[%emt 0:03:31]} 19. c5 {[%emt 0:05:24]} bxc5 {[%emt 0:00:37]} 20. Rc1 {[%emt 0:02:55]} c6 {[%emt 0:10:24]} 21. Rxc5 {[%emt 0:00:17]} Nhf8 {[%emt 0:00:57]} 22. Nh2 {[%emt 0:08:41]} Nf4 {[%emt 0:06:47]} 23. Bxf4 {[%emt 0:06:16]} Qxf4 {[%emt 0:00:10]} 24. g3 {[%emt 0:04:13]} Qg5 {[%emt 0:03:28]} 25. h4 {[%emt 0:06:34]} Qg6 {[%emt 0:06:31]} 26. Qf3 {[%emt 0:07:45]} Be6 {[%emt 0:06:22]} 27. Bxe6 {[%emt 0:04:19]} Qxe6 {[%emt 0:00:06]} 28. a5 {[%emt 0:00:56]} Qb3 {[%emt 0:03:52]} 29. Rc4 {[%emt 0:00:18]} c5 {[%emt 0:01:48]} 30. Qd1 {[%emt 0:13:23]} Qxd1 {[%emt 0:00:04]} 31. Rxd1 {[%emt 0:00:05]} cxb4 {[%emt 0:12:46]} 32. Ra1 {[%emt 0:01:18]} b6 {[%emt 0:03:50]} 33. a6 {[%emt 0:00:48]} Ra7 {[%emt 0:00:42]} 34. Rxb4 {[%emt 0:01:37]} Nd7 {[%emt 0:00:05]} 35. f4 {[%emt 0:02:32]} exf4 {[%emt 0:04:03]} 36. gxf4 {[%emt 0:00:13]} Nc5 {[%emt 0:00:16]} 37. Ra3 {[%emt 0:03:00]} Rxa6 {[%emt 0:01:56]} 38. Rxa6 {[%emt 0:00:05]} Nxa6 {[%emt 0:00:03]} 39. Rxd4 {[%emt 0:00:05]} b5 {[%emt 0:00:53]} 40. Nf3 {[%emt 0:02:10]} b4 {[%emt 0:00:52]} 41. Nd2 {[%emt 0:02:28]} Nc5 {[%emt 0:00:44]} 42. Kf2 {[%emt 0:02:04]} b3 {[%emt 0:06:49]} 43. Ke3 {[%emt 0:00:11]} Rb8 {[%emt 0:01:06]} 44. Rc4 {[%emt 0:00:54]} Nd7 {[%emt 0:00:10]} 45. Nb1 {[%emt 0:00:34]} Nb6 {[%emt 0:00:27]} 46. Rd4 {[%emt 0:00:38]} f5 {[%emt 0:01:09]} 47. Kd2 {[%emt 0:01:17]} fxe4 {[%emt 0:00:20]} 48. dxe4 {[%emt 0:00:09]} Rc8 {[%emt 0:00:52]} 49. Rb4 {[%emt 0:00:27]} Nc4+ {[%emt 0:00:45]} 50. Kd3 {[%emt 0:00:23]} Nb2+ {[%emt 0:00:35]} 51. Kd4 {[%emt 0:00:27]} Rd8+ {[%emt 0:00:12]} 52. Kc3 {[%emt 0:01:14]} 1/2-1/2

[Event "SixDays GM March 2024"]
[Site "Budapest"]
[Date "2024.04.01"]
[Round "4.1"]
[White "Horvath, Adam"]
[Black "Konyves, Almos"]
[Result "1/2-1/2"]
[ECO "C44"]
[WhiteElo "2440"]
[BlackElo "2306"]
[Annotator "TA"]
[PlyCount "55"]
[EventDate "2024.03.26"]
[EventType "tourn"]
[EventCountry "HUN"]
[SourceTitle "playchess.com"]
[Source "ChessBase"]
[SourceQuality "1"]
[TimeControl "5400+30"]

{[%evp 16,55,0,-1,0,0,0,0,0,0,0,0,0,0,0,0,0,-6,0,0,0,0,0,0,0,0,0,0,0,0,0,0,0,0,0,0,0,0,0,0,0,0]} 1. e4 {[%emt 0:03:36]} e5 {[%emt 0:00:04]} 2. Nf3 {[%emt 0:00:03]} Nc6 {[%emt 0:00:04]} 3. d4 {[%emt 0:00:05]} exd4 {[%emt 0:00:03]} 4. Bc4 {[%emt 0:00:04]} Bc5 {[%emt 0:00:05]} 5. Ng5 {[%emt 0:00:04]} Nh6 {[%emt 0:00:04]} 6. Nxf7 {[%emt 0:00:05]} Nxf7 {[%emt 0:00:03]} 7. Bxf7+ {[%emt 0:00:07]} Kxf7 {[%emt 0:00:03]} 8. Qh5+ {[%emt 0:00:06]} g6 {[%emt 0:00:03]} 9. Qxc5 {[%emt 0:00:05] [#] The position is equal.} d5 $1 {[%emt 0:00:04]} 10. O-O {[%emt 0:00:08]} (10. c3 dxe4) 10... dxe4 {[%emt 0:00:05]} 11. c3 {[%emt 0:00:05]} Qd6 {[%emt 0:00:04]} 12. Qxd6 {[%emt 0:00:05]} cxd6 {[%emt 0:00:02]} 13. cxd4 {[%emt 0:00:05]} Nxd4 {[%emt 0:00:04] [#] Hoping for ...Nc2.} 14. Nc3 {[%emt 0:00:05]} Bg4 {[%emt 0:00:05] Dodges Rd1} 15. Nxe4 {[%emt 0:00:06][%cal Of2f3] f3! is the strong threat.} Nc2 {[%emt 0:00:03]} 16. Nxd6+ {[%emt 0:00:06]} Ke6 {[%emt 0:00:03]} 17. Bf4 $1 {[%emt 0:00:05]} Nxa1 18. Rxa1 {[%emt 0:00:04][%cal Oh2h3]} Rhf8 {[%emt 0:00:11]} 19. Bg3 {[%emt 0:00:05]} b6 {[%emt 0:00:03]} 20. f3 {[%emt 0:00:04]} Bf5 {[%emt 0:01:17]} 21. Re1+ {[%emt 0:00:05]} Kd5 {[%emt 0:00:05]} 22. Rd1+ {[%emt 0:00:03]} Kc6 {[%emt 0:00:05]} 23. Rc1+ {[%emt 0:00:03]} Kd7 {[%emt 0:00:02]} 24. Rd1 {[%emt 0:00:04]} Ke6 {[%emt 0:00:03]} 25. Re1+ {[%emt 0:00:05]} Kd5 {[%emt 0:00:02]} 26. Rd1+ {[%emt 0:00:05]} Kc6 {[%emt 0:00:02]} 27. Rc1+ {[%emt 0:00:04]} Kd7 {[%emt 0:00:01]} 28. Rd1 {[%emt 0:00:06] An uneventful encounter.   Weighted Error Value: White=0.00 (flawless) /Black=0.00 (flawless) .  OK:         	White=8     	Black=13     Best:        	White=1     	Black=1      Strong:       	White=1     	---} 1/2-1/2

[Event "SixDays GM March 2024"]
[Site "Budapest"]
[Date "2024.04.01"]
[Round "4.2"]
[White "Pribelszky, Bence"]
[Black "Mayank Chakraborty"]
[Result "0-1"]
[ECO "C50"]
[WhiteElo "2354"]
[BlackElo "2386"]
[Annotator "RC"]
[PlyCount "80"]
[EventDate "2024.03.26"]
[EventType "tourn"]
[EventCountry "HUN"]
[SourceTitle "playchess.com"]
[Source "ChessBase"]
[SourceQuality "1"]
[TimeControl "5400+30"]

1. e4 e5 {[%emt 0:01:49]} 2. Nf3 {[%emt 0:00:39]} Nc6 {[%emt 0:00:04]} 3. Bc4 {[%emt 0:00:16]} Nf6 {[%emt 0:00:06]} 4. d3 {[%emt 0:00:08]} Bc5 {[%emt 0:00:05]} 5. O-O {[%emt 0:00:32]} O-O {[%emt 0:00:13]} 6. a4 {[%emt 0:00:35]} a5 {[%emt 0:00:10]} 7. Be3 {[%emt 0:01:11]} Bxe3 {[%emt 0:01:05]} 8. fxe3 {[%emt 0:00:02]} d6 {[%emt 0:00:17]} 9. Nbd2 {[%emt 0:01:41]} h6 {[%emt 0:03:40]} 10. h3 {[%emt 0:07:54]} Ne7 {[%emt 0:06:37]} 11. c3 {[%emt 0:07:36]} c6 {[%emt 0:01:36]} 12. Qb3 {[%emt 0:05:29]} b5 {[%emt 0:03:59]} 13. axb5 {[%emt 0:00:09]} d5 {[%emt 0:00:10]} 14. b6 {[%emt 0:27:44]} Rb8 {[%emt 0:16:01]} 15. exd5 {[%emt 0:01:13]} cxd5 {[%emt 0:00:20]} 16. Nxe5 {[%emt 0:15:45]} Be6 {[%emt 0:12:59]} 17. Rxa5 {[%emt 0:03:39]} dxc4 {[%emt 0:00:57]} 18. Ndxc4 {[%emt 0:00:12]} Nfd5 {[%emt 0:08:48]} 19. Rb5 {[%emt 0:04:59]} Nxe3 {[%emt 0:02:10]} 20. Rf3 {[%emt 0:04:51]} N7f5 {[%emt 0:05:28]} 21. Qb4 {[%emt 0:14:47]} Nxc4 {[%emt 0:14:10]} 22. dxc4 {[%emt 0:01:32]} Nh4 {[%emt 0:09:22]} 23. Rf2 {[%emt 0:00:31]} Qd1+ {[%emt 0:01:30]} 24. Kh2 {[%emt 0:00:02]} Qe1 {[%emt 0:00:35]} 25. Qc5 {[%emt 0:00:38]} Rfc8 {[%emt 0:06:44]} 26. Qd4 {[%emt 0:00:09]} Nf5 {[%emt 0:00:05]} 27. Qd2 {[%emt 0:00:55]} Qxd2 {[%emt 0:00:58]} 28. Rxd2 {[%emt 0:00:01]} Ne3 {[%emt 0:00:07]} 29. Rd6 {[%emt 0:01:18]} Nxc4 {[%emt 0:01:09]} 30. Nxc4 {[%emt 0:00:09]} Bxc4 {[%emt 0:00:20]} 31. Ra5 {[%emt 0:00:41]} Kf8 {[%emt 0:02:16]} 32. Ra7 {[%emt 0:00:30]} Ke8 {[%emt 0:00:39]} 33. Kg3 {[%emt 0:00:40]} Rd8 {[%emt 0:00:30]} 34. Rc6 {[%emt 0:00:31]} Bd5 {[%emt 0:00:06]} 35. Rcc7 {[%emt 0:00:27]} Rxb6 {[%emt 0:00:04]} 36. c4 {[%emt 0:00:21]} Be6 {[%emt 0:00:12]} 37. c5 {[%emt 0:00:28]} Rxb2 {[%emt 0:00:07]} 38. c6 {[%emt 0:00:03]} Rc2 {[%emt 0:00:38]} 39. Re7+ {[%emt 0:00:22]} Kf8 {[%emt 0:00:06]} 40. c7 {[%emt 0:00:07]} Rc8 {[%emt 0:00:06]} 0-1